[Event "*** SCC Grand Prix: Titled Tuesday Blitz"]
[Site "Chess.com"]
[Date "2020.08.11"]
[Round "9"]
[White "NoboaKevin1999"]
[Black "Grineva_Marianna"]
[Result "1-0"]
[WhiteElo "2416"]
[BlackElo "2209"]
[TimeControl "180+1"]
[EndTime "11:44:36 PDT"]
[Termination "NoboaKevin1999 won by resignation"]

1. d4 {[%clk 0:03:00.9]} 1... f5 {[%clk 0:02:58.3]} 2. c4 {[%clk 0:02:57.9]}
2... Nf6 {[%clk 0:02:57.3]} 3. Nf3 {[%clk 0:02:56.2]} 3... d6 {[%clk 0:02:57.4]}
4. e3 {[%clk 0:02:55.4]} 4... g6 {[%clk 0:02:57.6]} 5. Be2 {[%clk 0:02:54.5]}
5... Bg7 {[%clk 0:02:57.8]} 6. b4 {[%clk 0:02:55.1]} 6... O-O {[%clk 0:02:57.6]}
7. Bb2 {[%clk 0:02:55.2]} 7... c6 {[%clk 0:02:53.2]} 8. Nbd2 {[%clk 0:02:55.1]}
8... Qc7 {[%clk 0:02:46.4]} 9. Qc2 {[%clk 0:02:54.3]} 9... a5 {[%clk 0:02:40.4]}
10. a3 {[%clk 0:02:49.8]} 10... Na6 {[%clk 0:02:30.3]} 11. Qb3 {[%clk
0:02:43.9]} 11... Kh8 {[%clk 0:02:08.3]} 12. O-O {[%clk 0:02:43]} 12... d5
{[%clk 0:02:05.6]} 13. Rfc1 {[%clk 0:02:39.8]} 13... Be6 {[%clk 0:01:56.9]} 14.
b5 {[%clk 0:02:30.7]} 14... a4 {[%clk 0:01:47.7]} 15. Qxa4 {[%clk 0:02:21.3]}
15... Nc5 {[%clk 0:01:41.7]} 16. Qc2 {[%clk 0:02:09.5]} 16... Na4 {[%clk
0:01:41.6]} 17. cxd5 {[%clk 0:02:07.6]} 17... Bxd5 {[%clk 0:01:34.3]} 18. bxc6
{[%clk 0:02:04.8]} 18... bxc6 {[%clk 0:01:32.9]} 19. Bc3 {[%clk 0:02:03.9]}
19... Nxc3 {[%clk 0:01:26.2]} 20. Qxc3 {[%clk 0:02:04.8]} 20... Ne4 {[%clk
0:01:25.7]} 21. Nxe4 {[%clk 0:02:02.4]} 21... Bxe4 {[%clk 0:01:25.4]} 22. Ne5
{[%clk 0:01:57.9]} 22... Bd5 {[%clk 0:01:08.1]} 23. Bf3 {[%clk 0:01:56.5]} 23...
Bxe5 {[%clk 0:00:53.6]} 24. dxe5 {[%clk 0:01:54.1]} 24... Bxf3 {[%clk
0:00:52.5]} 25. gxf3 {[%clk 0:01:55]} 25... Ra6 {[%clk 0:00:49.1]} 26. f4 {[%clk
0:01:48.6]} 26... Rfa8 {[%clk 0:00:44.8]} 27. h4 {[%clk 0:01:45.4]} 27... h6
{[%clk 0:00:38.5]} 28. Kh2 {[%clk 0:01:42.8]} 28... Kh7 {[%clk 0:00:38.4]} 29.
Rd1 {[%clk 0:01:31.7]} 29... Rd8 {[%clk 0:00:33.4]} 30. Qc4 {[%clk 0:01:27.9]}
30... Rxd1 {[%clk 0:00:23.8]} 31. Qf7+ {[%clk 0:01:27]} 31... Kh8 {[%clk
0:00:20.9]} 32. Rxd1 {[%clk 0:01:27.3]} 32... Rxa3 {[%clk 0:00:17.8]} 33. Qxg6
{[%clk 0:01:25.9]} 33... Ra2 {[%clk 0:00:12.7]} 34. Qxh6+ {[%clk 0:01:23.8]}
34... Kg8 {[%clk 0:00:13]} 35. Rg1+ {[%clk 0:01:22.9]} 35... Kf7 {[%clk
0:00:12.4]} 36. e6+ {[%clk 0:01:21.5]} 1-0

[Event "*** SCC Grand Prix: Titled Tuesday Blitz"]
[Site "Chess.com"]
[Date "2020.08.11"]
[Round "9"]
[White "Oleksandr_Bortnyk"]
[Black "GiantThresher"]
[Result "1-0"]
[WhiteElo "2975"]
[BlackElo "2723"]
[TimeControl "180+1"]
[EndTime "11:44:37 PDT"]
[Termination "Oleksandr_Bortnyk won by resignation"]

1. e4 {[%clk 0:03:00.9]} 1... e6 {[%clk 0:02:57.3]} 2. d4 {[%clk 0:02:59.7]}
2... d5 {[%clk 0:02:56.7]} 3. Nc3 {[%clk 0:03:00.3]} 3... Bb4 {[%clk 0:02:56.2]}
4. e5 {[%clk 0:02:48.4]} 4... c5 {[%clk 0:02:56.2]} 5. Bd2 {[%clk 0:02:47.6]}
5... Nh6 {[%clk 0:02:56.1]} 6. Nb5 {[%clk 0:02:46.3]} 6... Bxd2+ {[%clk
0:02:55]} 7. Qxd2 {[%clk 0:02:47.2]} 7... O-O {[%clk 0:02:55.4]} 8. dxc5 {[%clk
0:02:47.1]} 8... Nd7 {[%clk 0:02:42.6]} 9. Qc3 {[%clk 0:02:46.5]} 9... f6 {[%clk
0:02:39]} 10. exf6 {[%clk 0:02:42.2]} 10... Nxf6 {[%clk 0:02:39.9]} 11. f3
{[%clk 0:02:41.3]} 11... e5 {[%clk 0:02:37.7]} 12. O-O-O {[%clk 0:02:35.6]}
12... Qe7 {[%clk 0:02:24.6]} 13. Nd6 {[%clk 0:02:28.1]} 13... b6 {[%clk
0:02:17.2]} 14. g4 {[%clk 0:02:13.6]} 14... Nd7 {[%clk 0:01:13.9]} 15. Rxd5
{[%clk 0:01:59.8]} 15... Nxc5 {[%clk 0:01:09.5]} 16. Bc4 {[%clk 0:01:42.7]}
16... Be6 {[%clk 0:00:54.8]} 17. Qxe5 {[%clk 0:01:39.4]} 17... Nf7 {[%clk
0:00:55]} 18. Nxf7 {[%clk 0:01:26.4]} 18... Qxf7 {[%clk 0:00:55.9]} 19. Rxc5
{[%clk 0:01:27]} 19... Bxc4 {[%clk 0:00:52.3]} 20. Rc7 {[%clk 0:01:27.1]} 20...
Qf4+ {[%clk 0:00:50.5]} 21. Qxf4 {[%clk 0:01:27.2]} 21... Rxf4 {[%clk
0:00:51.4]} 22. Nh3 {[%clk 0:01:22.7]} 22... Rxf3 {[%clk 0:00:44.3]} 23. Rxc4
{[%clk 0:01:17.2]} 23... Rxh3 {[%clk 0:00:44.3]} 24. b3 {[%clk 0:01:14.7]} 24...
Rf8 {[%clk 0:00:39.7]} 25. a4 {[%clk 0:01:08.8]} 25... h6 {[%clk 0:00:37.5]} 26.
Kb2 {[%clk 0:01:01.9]} 26... Rf7 {[%clk 0:00:37.4]} 27. b4 {[%clk 0:01:00.4]}
27... Kh7 {[%clk 0:00:37.4]} 28. Rc3 {[%clk 0:00:55.5]} 28... Rxc3 {[%clk
0:00:35]} 29. Kxc3 {[%clk 0:00:56.4]} 29... Rf3+ {[%clk 0:00:35.6]} 30. Kc4
{[%clk 0:00:55.9]} 30... Rf4+ {[%clk 0:00:36]} 31. Kb5 {[%clk 0:00:56.6]} 31...
Rxg4 {[%clk 0:00:36.9]} 32. c4 {[%clk 0:00:57.3]} 32... Kg6 {[%clk 0:00:32.4]}
33. c5 {[%clk 0:00:57.3]} 33... bxc5 {[%clk 0:00:32.4]} 34. bxc5 {[%clk
0:00:58.2]} 34... Rg2 {[%clk 0:00:32.5]} 35. Rc1 {[%clk 0:00:56.5]} 35... Rb2+
{[%clk 0:00:26.3]} 36. Ka6 {[%clk 0:00:56.8]} 1-0

[Event "*** SCC Grand Prix: Titled Tuesday Blitz"]
[Site "Chess.com"]
[Date "2020.08.11"]
[Round "9"]
[White "sergivila"]
[Black "Jadeit90"]
[Result "1-0"]
[WhiteElo "2444"]
[BlackElo "2268"]
[TimeControl "180+1"]
[EndTime "11:44:38 PDT"]
[Termination "sergivila won by resignation"]

1. e4 {[%clk 0:03:00.9]} 1... g6 {[%clk 0:03:00.1]} 2. d4 {[%clk 0:03:00.6]}
2... Bg7 {[%clk 0:03:01]} 3. Nf3 {[%clk 0:03:00.4]} 3... c5 {[%clk 0:03:01.5]}
4. dxc5 {[%clk 0:02:59.4]} 4... Qa5+ {[%clk 0:03:01.3]} 5. c3 {[%clk 0:03:00]}
5... Qxc5 {[%clk 0:03:01.3]} 6. Na3 {[%clk 0:03:00.6]} 6... Nf6 {[%clk
0:03:00.4]} 7. Be3 {[%clk 0:02:57.8]} 7... Qa5 {[%clk 0:03:00.1]} 8. Nc4 {[%clk
0:02:52.1]} 8... Qc7 {[%clk 0:02:58.7]} 9. Qc2 {[%clk 0:02:12]} 9... d6 {[%clk
0:02:50]} 10. h3 {[%clk 0:02:11.1]} 10... O-O {[%clk 0:02:49.5]} 11. Be2 {[%clk
0:02:08.7]} 11... Nc6 {[%clk 0:02:49.9]} 12. a4 {[%clk 0:02:06.2]} 12... Be6
{[%clk 0:02:48.1]} 13. Ncd2 {[%clk 0:02:03.6]} 13... Rfc8 {[%clk 0:02:47.9]} 14.
O-O {[%clk 0:02:01.3]} 14... a6 {[%clk 0:02:45.6]} 15. Rfc1 {[%clk 0:01:52.2]}
15... d5 {[%clk 0:02:45.6]} 16. Bd3 {[%clk 0:01:46.3]} 16... dxe4 {[%clk
0:02:44.5]} 17. Nxe4 {[%clk 0:01:45.9]} 17... Nxe4 {[%clk 0:02:44.5]} 18. Bxe4
{[%clk 0:01:46.2]} 18... Rd8 {[%clk 0:02:44.1]} 19. Qe2 {[%clk 0:01:25.1]} 19...
Rac8 {[%clk 0:02:43.4]} 20. b4 {[%clk 0:01:10.9]} 20... Ne5 {[%clk 0:02:41.6]}
21. Nxe5 {[%clk 0:01:01.5]} 21... Bxe5 {[%clk 0:02:42.5]} 22. a5 {[%clk
0:00:58.3]} 22... Bc4 {[%clk 0:02:41.6]} 23. Qf3 {[%clk 0:00:57.5]} 23... Rd7
{[%clk 0:02:37.8]} 24. Bb6 {[%clk 0:00:55.6]} 24... Qb8 {[%clk 0:02:35.7]} 25.
Rd1 {[%clk 0:00:55]} 25... Rd6 {[%clk 0:02:20.2]} 26. Bxb7 {[%clk 0:00:51.4]}
26... Rf8 {[%clk 0:02:11.4]} 27. Be4 {[%clk 0:00:44]} 27... Rc8 {[%clk
0:02:04.9]} 28. Bc5 {[%clk 0:00:42.1]} 28... Rf6 {[%clk 0:02:03.4]} 29. Qe3
{[%clk 0:00:39.7]} 29... Bf4 {[%clk 0:02:02.2]} 30. Qe1 {[%clk 0:00:37.6]} 30...
Qc7 {[%clk 0:01:54.9]} 31. Bd5 {[%clk 0:00:34.5]} 31... Bxd5 {[%clk 0:01:53.9]}
32. Rxd5 {[%clk 0:00:35.4]} 32... Re6 {[%clk 0:01:49.7]} 33. Qf1 {[%clk
0:00:33.6]} 33... Qc6 {[%clk 0:01:45.7]} 34. Rad1 {[%clk 0:00:31.8]} 34... Bc7
{[%clk 0:01:45.1]} 35. Qd3 {[%clk 0:00:25.7]} 35... h5 {[%clk 0:01:43.5]} 36.
Rd7 {[%clk 0:00:20]} 36... Re4 {[%clk 0:01:38.9]} 37. Rxe7 {[%clk 0:00:18]}
37... Rxe7 {[%clk 0:01:36.5]} 38. Bxe7 {[%clk 0:00:18.9]} 38... Bb8 {[%clk
0:01:32.5]} 39. Bc5 {[%clk 0:00:18.6]} 39... Qc7 {[%clk 0:01:32.5]} 40. g3
{[%clk 0:00:18.8]} 40... h4 {[%clk 0:01:32.7]} 41. Bd6 {[%clk 0:00:16.3]} 41...
Qxd6 {[%clk 0:01:32.3]} 42. Qxd6 {[%clk 0:00:16]} 42... Bxd6 {[%clk 0:01:33]}
43. Rxd6 {[%clk 0:00:16.5]} 43... hxg3 {[%clk 0:01:33.9]} 44. fxg3 {[%clk
0:00:16.5]} 44... Rxc3 {[%clk 0:01:34.8]} 45. Rxa6 {[%clk 0:00:16.1]} 45...
Rxg3+ {[%clk 0:01:34.9]} 46. Kh2 {[%clk 0:00:16.6]} 46... Rb3 {[%clk 0:01:35]}
47. Rb6 {[%clk 0:00:16.9]} 47... Kf8 {[%clk 0:01:34.8]} 48. a6 {[%clk
0:00:17.4]} 48... Ra3 {[%clk 0:01:34.7]} 49. b5 {[%clk 0:00:17.8]} 1-0

[Event "*** SCC Grand Prix: Titled Tuesday Blitz"]
[Site "Chess.com"]
[Date "2020.08.11"]
[Round "9"]
[White "tylityli"]
[Black "ailime26"]
[Result "1-0"]
[WhiteElo "2165"]
[BlackElo "1904"]
[TimeControl "180+1"]
[EndTime "11:44:40 PDT"]
[Termination "tylityli won on time"]

1. d4 {[%clk 0:03:00.9]} 1... d5 {[%clk 0:02:58.2]} 2. c4 {[%clk 0:03:00.7]}
2... Nf6 {[%clk 0:02:47.3]} 3. Nc3 {[%clk 0:02:59.9]} 3... e6 {[%clk 0:02:46.9]}
4. cxd5 {[%clk 0:02:59.8]} 4... Nxd5 {[%clk 0:02:43.7]} 5. e4 {[%clk 0:02:59.6]}
5... Nf6 {[%clk 0:02:41.2]} 6. Nf3 {[%clk 0:02:58.5]} 6... Bb4 {[%clk
0:02:35.3]} 7. Bd3 {[%clk 0:02:57.3]} 7... Nc6 {[%clk 0:02:16.3]} 8. O-O {[%clk
0:02:54.1]} 8... O-O {[%clk 0:02:12.1]} 9. a3 {[%clk 0:02:42.4]} 9... Ba5 {[%clk
0:02:09.4]} 10. b4 {[%clk 0:02:37.4]} 10... Bb6 {[%clk 0:01:57.8]} 11. d5 {[%clk
0:02:37.3]} 11... exd5 {[%clk 0:01:45]} 12. exd5 {[%clk 0:02:35.2]} 12... Nd4
{[%clk 0:01:41.9]} 13. Nxd4 {[%clk 0:02:33.1]} 13... Bxd4 {[%clk 0:01:36.7]} 14.
Bxh7+ {[%clk 0:02:32.9]} 14... Kxh7 {[%clk 0:01:30.6]} 15. Qxd4 {[%clk
0:02:33.8]} 15... c6 {[%clk 0:01:18.9]} 16. d6 {[%clk 0:02:32.2]} 16... Bf5
{[%clk 0:01:12.5]} 17. Bg5 {[%clk 0:02:30.8]} 17... Kg6 {[%clk 0:00:53.6]} 18.
h4 {[%clk 0:02:23.8]} 18... Re8 {[%clk 0:00:46.5]} 19. Rfe1 {[%clk 0:02:17.7]}
19... Qd7 {[%clk 0:00:42.1]} 20. Bxf6 {[%clk 0:02:07.9]} 20... gxf6 {[%clk
0:00:26.2]} 21. Qf4 {[%clk 0:01:59]} 21... Re6 {[%clk 0:00:18.9]} 22. Re3 {[%clk
0:01:50.3]} 22... Rxe3 {[%clk 0:00:11.7]} 23. fxe3 {[%clk 0:01:50.1]} 23... Re8
{[%clk 0:00:06.2]} 24. Rf1 {[%clk 0:01:48.3]} 24... Kh7 {[%clk 0:00:02.9]} 25.
e4 {[%clk 0:01:44.3]} 25... Bg6 {[%clk 0:00:02.1]} 26. h5 {[%clk 0:01:29.8]}
26... Bxh5 {[%clk 0:00:01.7]} 27. Qh4 {[%clk 0:01:29.6]} 27... Qg4 {[%clk
0:00:01.6]} 28. Qxf6 {[%clk 0:01:20.8]} 28... Qg6 {[%clk 0:00:01.4]} 29. Qh4
{[%clk 0:01:11.8]} 1-0

[Event "*** SCC Grand Prix: Titled Tuesday Blitz"]
[Site "Chess.com"]
[Date "2020.08.11"]
[Round "9"]
[White "Danfii"]
[Black "Chesswizard_2007"]
[Result "0-1"]
[WhiteElo "2355"]
[BlackElo "2504"]
[TimeControl "180+1"]
[EndTime "11:44:42 PDT"]
[Termination "Chesswizard_2007 won by resignation"]

1. e4 {[%clk 0:03:00.9]} 1... Nc6 {[%clk 0:02:49.4]} 2. Nf3 {[%clk 0:03:00.7]}
2... e5 {[%clk 0:02:46.9]} 3. Bc4 {[%clk 0:03:00.5]} 3... Nf6 {[%clk 0:02:45.3]}
4. d3 {[%clk 0:03:00.2]} 4... Bc5 {[%clk 0:02:44.2]} 5. O-O {[%clk 0:03:00]}
5... O-O {[%clk 0:02:43]} 6. Nbd2 {[%clk 0:02:59.6]} 6... a6 {[%clk 0:02:43.1]}
7. c3 {[%clk 0:02:59.7]} 7... Ba7 {[%clk 0:02:42.6]} 8. Bb3 {[%clk 0:02:59.7]}
8... h6 {[%clk 0:02:42.6]} 9. h3 {[%clk 0:02:59.8]} 9... d5 {[%clk 0:02:42.5]}
10. exd5 {[%clk 0:02:49.7]} 10... Nxd5 {[%clk 0:02:43.4]} 11. Ne4 {[%clk
0:02:49.6]} 11... Be6 {[%clk 0:02:40.6]} 12. Re1 {[%clk 0:02:46.5]} 12... f5
{[%clk 0:02:24.9]} 13. Ng3 {[%clk 0:02:46.1]} 13... Qf6 {[%clk 0:02:23.1]} 14.
Nh5 {[%clk 0:02:41.3]} 14... Qf7 {[%clk 0:02:13.8]} 15. Nxe5 {[%clk 0:02:38.9]}
15... Nxe5 {[%clk 0:02:12.5]} 16. Rxe5 {[%clk 0:02:39.8]} 16... Rad8 {[%clk
0:02:03.5]} 17. Qf3 {[%clk 0:02:33.5]} 17... c6 {[%clk 0:02:01.4]} 18. d4 {[%clk
0:02:08.2]} 18... Bb8 {[%clk 0:01:57.2]} 19. Re1 {[%clk 0:02:03.7]} 19... Rfe8
{[%clk 0:01:52.4]} 20. Bc2 {[%clk 0:01:50.8]} 20... g5 {[%clk 0:01:26.3]} 21.
Ng3 {[%clk 0:01:25]} 21... Bxg3 {[%clk 0:01:18.7]} 22. Qxg3 {[%clk 0:01:18.2]}
22... f4 {[%clk 0:01:18.5]} 23. Qf3 {[%clk 0:01:11.3]} 23... Bf5 {[%clk
0:01:18.4]} 24. Rxe8+ {[%clk 0:01:01.8]} 24... Rxe8 {[%clk 0:01:19.3]} 25. Bxf5
{[%clk 0:00:37.8]} 25... Re1+ {[%clk 0:01:17.7]} 26. Kh2 {[%clk 0:00:38.2]}
26... Qxf5 {[%clk 0:01:18.4]} 27. b3 {[%clk 0:00:38.1]} 27... Nf6 {[%clk
0:00:55.2]} 28. a4 {[%clk 0:00:18]} 28... g4 {[%clk 0:00:52.6]} 29. Qxf4 {[%clk
0:00:10.5]} 29... Qxf4+ {[%clk 0:00:51.8]} 30. Bxf4 {[%clk 0:00:10.7]} 30...
Rxa1 {[%clk 0:00:52.7]} 0-1

[Event "*** SCC Grand Prix: Titled Tuesday Blitz"]
[Site "Chess.com"]
[Date "2020.08.11"]
[Round "9"]
[White "Aygehovit1992"]
[Black "ace_mar"]
[Result "1-0"]
[WhiteElo "2624"]
[BlackElo "2471"]
[TimeControl "180+1"]
[EndTime "11:44:47 PDT"]
[Termination "Aygehovit1992 won by checkmate"]

1. e4 {[%clk 0:03:00.9]} 1... e5 {[%clk 0:03:00.1]} 2. Nf3 {[%clk 0:03:00.8]}
2... Nc6 {[%clk 0:03:00.5]} 3. Bb5 {[%clk 0:03:01.4]} 3... a6 {[%clk 0:03:00.2]}
4. Ba4 {[%clk 0:03:02.1]} 4... Nf6 {[%clk 0:03:00.3]} 5. O-O {[%clk 0:03:02.7]}
5... Be7 {[%clk 0:03:00.7]} 6. d3 {[%clk 0:03:01.4]} 6... b5 {[%clk 0:02:59.7]}
7. Bb3 {[%clk 0:03:01.4]} 7... d6 {[%clk 0:03:00.3]} 8. a3 {[%clk 0:03:02]} 8...
Na5 {[%clk 0:03:00.2]} 9. Ba2 {[%clk 0:03:02]} 9... c5 {[%clk 0:03:00.8]} 10.
Nc3 {[%clk 0:03:00.8]} 10... Be6 {[%clk 0:02:58.4]} 11. b4 {[%clk 0:02:57.5]}
11... Bxa2 {[%clk 0:02:54.3]} 12. Rxa2 {[%clk 0:02:56.3]} 12... Nc6 {[%clk
0:02:54.1]} 13. bxc5 {[%clk 0:02:52.6]} 13... dxc5 {[%clk 0:02:55]} 14. Bg5
{[%clk 0:02:53.2]} 14... O-O {[%clk 0:02:51.7]} 15. Bxf6 {[%clk 0:02:53.6]}
15... Bxf6 {[%clk 0:02:52.6]} 16. Nd5 {[%clk 0:02:54.3]} 16... Qd6 {[%clk
0:02:45.9]} 17. c4 {[%clk 0:02:54.3]} 17... Rab8 {[%clk 0:02:40.9]} 18. cxb5
{[%clk 0:02:42.9]} 18... axb5 {[%clk 0:02:41.8]} 19. Qc2 {[%clk 0:02:42]} 19...
Rfc8 {[%clk 0:02:34.3]} 20. Rb1 {[%clk 0:02:33.9]} 20... Nd4 {[%clk 0:02:29.2]}
21. Nxd4 {[%clk 0:02:31.5]} 21... exd4 {[%clk 0:02:30.1]} 22. a4 {[%clk
0:02:28.7]} 22... bxa4 {[%clk 0:02:19.6]} 23. Rxb8 {[%clk 0:02:29.6]} 23... Rxb8
{[%clk 0:02:20.5]} 24. Rxa4 {[%clk 0:02:29.5]} 24... Bd8 {[%clk 0:02:01.6]} 25.
g3 {[%clk 0:02:28.9]} 25... h6 {[%clk 0:01:58.4]} 26. Kg2 {[%clk 0:02:23.3]}
26... Kh7 {[%clk 0:01:46.9]} 27. Ra7 {[%clk 0:02:22.8]} 27... f5 {[%clk
0:01:40.8]} 28. Qe2 {[%clk 0:02:15.9]} 28... Qe6 {[%clk 0:01:14]} 29. Qf3 {[%clk
0:02:01.5]} 29... fxe4 {[%clk 0:01:05.3]} 30. dxe4 {[%clk 0:02:02.4]} 30... Bg5
{[%clk 0:00:55.2]} 31. h4 {[%clk 0:01:56.1]} 31... Bd2 {[%clk 0:00:54.8]} 32.
Nf6+ {[%clk 0:01:21.5]} 32... Kh8 {[%clk 0:00:53.2]} 33. Nd7 {[%clk 0:01:21.1]}
33... Rc8 {[%clk 0:00:46.5]} 34. h5 {[%clk 0:01:17.6]} 34... c4 {[%clk
0:00:26.1]} 35. Nf8 {[%clk 0:01:17]} 35... Qe8 {[%clk 0:00:12.3]} 36. Ng6+
{[%clk 0:01:14.3]} 36... Kh7 {[%clk 0:00:12.6]} 37. Qf5 {[%clk 0:01:11.1]} 37...
Bb4 {[%clk 0:00:08.4]} 38. Nf8+ {[%clk 0:01:10.1]} 38... Kh8 {[%clk 0:00:08.6]}
39. Qh7# {[%clk 0:01:10]} 1-0

[Event "*** SCC Grand Prix: Titled Tuesday Blitz"]
[Site "Chess.com"]
[Date "2020.08.11"]
[Round "9"]
[White "talaicito"]
[Black "LuisFSiles"]
[Result "0-1"]
[WhiteElo "2090"]
[BlackElo "2296"]
[TimeControl "180+1"]
[EndTime "11:44:47 PDT"]
[Termination "LuisFSiles won by checkmate"]

1. d4 {[%clk 0:03:00.9]} 1... Nf6 {[%clk 0:02:59]} 2. Nc3 {[%clk 0:03:00.1]}
2... d5 {[%clk 0:02:58.1]} 3. Bf4 {[%clk 0:02:59.4]} 3... c6 {[%clk 0:02:57.2]}
4. e3 {[%clk 0:02:59.2]} 4... g6 {[%clk 0:02:56.9]} 5. Nf3 {[%clk 0:02:58.7]}
5... Bg7 {[%clk 0:02:56.9]} 6. Ne5 {[%clk 0:02:58.7]} 6... Nfd7 {[%clk
0:02:52.6]} 7. h4 {[%clk 0:02:51.9]} 7... Nxe5 {[%clk 0:02:48.6]} 8. Bxe5 {[%clk
0:02:49.8]} 8... Bxe5 {[%clk 0:02:38.2]} 9. dxe5 {[%clk 0:02:50.7]} 9... h5
{[%clk 0:02:37.7]} 10. Bd3 {[%clk 0:02:21.6]} 10... Qc7 {[%clk 0:02:29.6]} 11.
f4 {[%clk 0:02:16.5]} 11... Bg4 {[%clk 0:02:24.6]} 12. Qd2 {[%clk 0:02:12.4]}
12... e6 {[%clk 0:02:23.3]} 13. Be2 {[%clk 0:01:48.9]} 13... Bf5 {[%clk
0:02:19.3]} 14. Bf3 {[%clk 0:01:46.5]} 14... Nd7 {[%clk 0:02:14.4]} 15. e4
{[%clk 0:01:41]} 15... dxe4 {[%clk 0:01:42.2]} 16. Bxe4 {[%clk 0:01:41]} 16...
O-O-O {[%clk 0:01:40.2]} 17. O-O-O {[%clk 0:01:28.3]} 17... Nc5 {[%clk
0:01:35.6]} 18. Qe2 {[%clk 0:01:27]} 18... Rxd1+ {[%clk 0:01:26.6]} 19. Rxd1
{[%clk 0:01:21.4]} 19... Bg4 {[%clk 0:01:26.4]} 20. Bf3 {[%clk 0:01:20.3]} 20...
Bf5 {[%clk 0:01:14.3]} 21. b4 {[%clk 0:01:15.7]} 21... Nd7 {[%clk 0:01:08.6]}
22. b5 {[%clk 0:00:55.6]} 22... c5 {[%clk 0:00:50.4]} 23. a4 {[%clk 0:00:45.1]}
23... Qa5 {[%clk 0:00:43.1]} 24. Qc4 {[%clk 0:00:44.5]} 24... Nb6 {[%clk
0:00:42.6]} 25. Qxc5+ {[%clk 0:00:38.5]} 25... Kb8 {[%clk 0:00:42.6]} 26. Qd6+
{[%clk 0:00:29.8]} 26... Kc8 {[%clk 0:00:38.2]} 27. Rd4 {[%clk 0:00:19.6]} 27...
Qxc3 {[%clk 0:00:36.6]} 28. Rd2 {[%clk 0:00:11.1]} 28... Qa1# {[%clk 0:00:35.8]}
0-1

[Event "*** SCC Grand Prix: Titled Tuesday Blitz"]
[Site "Chess.com"]
[Date "2020.08.11"]
[Round "9"]
[White "ftorodent"]
[Black "eljanov"]
[Result "0-1"]
[WhiteElo "2659"]
[BlackElo "2803"]
[TimeControl "180+1"]
[EndTime "11:44:50 PDT"]
[Termination "eljanov won by resignation"]

1. d4 {[%clk 0:03:00.9]} 1... Nf6 {[%clk 0:02:57.9]} 2. c4 {[%clk 0:03:00.8]}
2... e6 {[%clk 0:02:57.9]} 3. Nf3 {[%clk 0:03:00.8]} 3... b6 {[%clk 0:02:58.1]}
4. a3 {[%clk 0:03:00.7]} 4... Bb7 {[%clk 0:02:58]} 5. Nc3 {[%clk 0:03:00.1]}
5... d5 {[%clk 0:02:58.4]} 6. Bg5 {[%clk 0:02:58.9]} 6... Be7 {[%clk 0:02:55.9]}
7. cxd5 {[%clk 0:02:59]} 7... Nxd5 {[%clk 0:02:55.1]} 8. Nxd5 {[%clk 0:02:59.1]}
8... Bxd5 {[%clk 0:02:50.1]} 9. Bxe7 {[%clk 0:02:58.7]} 9... Qxe7 {[%clk
0:02:50.6]} 10. Qc2 {[%clk 0:02:53.9]} 10... O-O {[%clk 0:02:44.2]} 11. Rc1
{[%clk 0:02:38.9]} 11... c5 {[%clk 0:02:07.9]} 12. e4 {[%clk 0:01:59.8]} 12...
Bb7 {[%clk 0:02:06]} 13. dxc5 {[%clk 0:01:44.3]} 13... Nd7 {[%clk 0:01:22.8]}
14. c6 {[%clk 0:01:21.7]} 14... Rac8 {[%clk 0:01:22.4]} 15. Nd4 {[%clk
0:00:56.7]} 15... Ne5 {[%clk 0:00:47.4]} 16. c7 {[%clk 0:00:43.1]} 16... Qh4
{[%clk 0:00:37.7]} 17. Bd3 {[%clk 0:00:27.9]} 17... Nxd3+ {[%clk 0:00:27.6]} 18.
Qxd3 {[%clk 0:00:28]} 18... Bxe4 {[%clk 0:00:27.7]} 19. Qg3 {[%clk 0:00:28.3]}
19... Qf6 {[%clk 0:00:24.6]} 20. Qd6 {[%clk 0:00:20.4]} 20... Qg5 {[%clk
0:00:21.4]} 21. Qg3 {[%clk 0:00:15.8]} 21... Qxc1+ {[%clk 0:00:21.1]} 22. Ke2
{[%clk 0:00:15.5]} 22... Qxc7 {[%clk 0:00:20.6]} 0-1

[Event "*** SCC Grand Prix: Titled Tuesday Blitz"]
[Site "Chess.com"]
[Date "2020.08.11"]
[Round "9"]
[White "Thipsay"]
[Black "Batsai"]
[Result "1-0"]
[WhiteElo "2477"]
[BlackElo "2347"]
[TimeControl "180+1"]
[EndTime "11:44:52 PDT"]
[Termination "Thipsay won by checkmate"]

1. e4 {[%clk 0:03:00.9]} 1... c5 {[%clk 0:02:59]} 2. Nf3 {[%clk 0:03:00.2]} 2...
d6 {[%clk 0:02:59.9]} 3. d4 {[%clk 0:02:59.4]} 3... cxd4 {[%clk 0:03:00.8]} 4.
Nxd4 {[%clk 0:02:59.1]} 4... Nf6 {[%clk 0:03:01.4]} 5. Nc3 {[%clk 0:02:59.2]}
5... a6 {[%clk 0:03:01.9]} 6. Be2 {[%clk 0:02:59.4]} 6... e5 {[%clk 0:02:59.8]}
7. Nb3 {[%clk 0:02:59.4]} 7... Be6 {[%clk 0:02:59.9]} 8. O-O {[%clk 0:02:58.9]}
8... Nbd7 {[%clk 0:03:00.4]} 9. f4 {[%clk 0:02:58.8]} 9... exf4 {[%clk
0:02:57.2]} 10. Nd4 {[%clk 0:02:58.4]} 10... Be7 {[%clk 0:02:51.9]} 11. Bxf4
{[%clk 0:02:57.3]} 11... Ne5 {[%clk 0:02:38.2]} 12. Kh1 {[%clk 0:02:52.4]} 12...
O-O {[%clk 0:02:37]} 13. Bg3 {[%clk 0:02:35.3]} 13... Qc7 {[%clk 0:02:13.7]} 14.
Nf5 {[%clk 0:02:32.8]} 14... Bxf5 {[%clk 0:02:11.4]} 15. Rxf5 {[%clk 0:02:32.8]}
15... Nc4 {[%clk 0:01:46.4]} 16. Rxf6 {[%clk 0:01:51.5]} 16... Bxf6 {[%clk
0:01:44]} 17. Nd5 {[%clk 0:01:51.3]} 17... Qc5 {[%clk 0:01:34.4]} 18. Nxf6+
{[%clk 0:01:48.9]} 18... gxf6 {[%clk 0:01:35.3]} 19. Bxc4 {[%clk 0:01:48.9]}
19... Qxc4 {[%clk 0:01:35.6]} 20. Qg4+ {[%clk 0:01:47.5]} 20... Kh8 {[%clk
0:01:33.5]} 21. Bh4 {[%clk 0:01:43.2]} 21... Qe6 {[%clk 0:01:27.1]} 22. Qf4
{[%clk 0:01:42.6]} 22... Kg7 {[%clk 0:00:45]} 23. Rf1 {[%clk 0:01:41.4]} 23...
Rg8 {[%clk 0:00:45.1]} 24. Bxf6+ {[%clk 0:01:37.4]} 24... Kf8 {[%clk 0:00:45.3]}
25. h3 {[%clk 0:01:34.5]} 25... Rg6 {[%clk 0:00:40.4]} 26. Bc3 {[%clk
0:01:26.8]} 26... Re8 {[%clk 0:00:35.1]} 27. Bb4 {[%clk 0:01:23.1]} 27... Kg8
{[%clk 0:00:34.3]} 28. Bc3 {[%clk 0:01:10.2]} 28... Re7 {[%clk 0:00:28.6]} 29.
Re1 {[%clk 0:01:08.3]} 29... b5 {[%clk 0:00:21.9]} 30. a3 {[%clk 0:01:04.8]}
30... h5 {[%clk 0:00:11.3]} 31. Qf3 {[%clk 0:01:03.9]} 31... h4 {[%clk
0:00:08.9]} 32. Qf4 {[%clk 0:01:03.6]} 32... Re8 {[%clk 0:00:05.4]} 33. Qxh4
{[%clk 0:01:03.4]} 33... d5 {[%clk 0:00:05.2]} 34. Qh8# {[%clk 0:01:03.1]} 1-0